bitfinex-derivatives/quotes_SOLF0:USTF0_20250929
["timestamp","ask_amount","ask_price","bid_price","bid_amount"]
[1759171036359,7.41,210.1,210.04,7.44]
[1759171037565,7.41,210.1,210.06,4.2816]
[1759171037863,7.41,210.1,210.07,7.44]
[1759171039565,7.41,210.12,210.06,4.2816]
[1759171042272,7.41,210.12,210.07,4.2814]
[1759171042462,2.23303867,210.15,210.07,2.23303867]
[1759171042665,7.41,210.16,210.03,80.94181514]
[1759171042666,7.41,210.16,210.1,7.44]
[1759171042868,7.41,210.16,210.13,7.44]
[1759171043170,7.41,210.18,210.12,4.2804]
[1759171043571,7.41,210.16,210.1,7.44]
[1759171044274,7.41,210.16,210.11,2.23303867]
[1759171044462,7.41,210.16,210.12,7.43]
[1759171044866,7.41,210.16,210.12,11.7104]
[1759171045065,7.41,210.16,210.13,7.43]
[1759171046371,7.41,210.16,210.12,11.7104]
[1759171046676,7.65,210.17,210.12,11.7104]
[1759171046875,4.2794,210.18,210.12,11.7104]
[1759171047171,4.2796,210.17,210.12,7.43]
[1759171047369,7.65,210.16,210.12,7.43]
[1759171047569,2.23303867,210.2,210.1,4.2808]
[1759171047570,4.2799,210.15,210.1,4.2808]
[1759171047771,7.65,210.14,210.09,9.66303867]
[1759171047967,7.65,210.15,210.09,9.66303867]
[1759171048574,7.65,210.15,210.09,13.94393867]
[1759171049774,11.93,210.15,210.09,13.94393867]
[1759171051377,7.65,210.17,210.07,6.51453867]
[1759171051578,7.65,210.15,210.07,6.51453867]
[1759171052277,7.65,210.15,210.07,4.2815]
[1759171052478,7.65,210.13,210.08,4.2812]
[1759171052676,7.65,210.13,210.09,7.43]
[1759171052973,7.65,210.13,210.05,7.43]
[1759171054678,7.65,210.13,210.09,11.711]
[1759171055680,7.65,210.13,210.1,11.7108]
[1759171056179,7.65,210.18,210.07,70.08910016]
[1759171056378,7.65,210.18,210.1,3.48750016]
[1759171056578,7.65,210.18,210.11,7.43]
[1759171056881,7.65,210.17,210.13,11.7102]
[1759171057281,7.65,210.17,210.14,7.43]
[1759171057478,7.65,210.2,210.11,7.43]
[1759171058685,7.65,210.2,210.13,4.2802]
[1759171059281,11.929,210.2,210.14,4.28]
[1759171062976,7.65,210.21,210.15,4.2798]
[1759171064579,11.9288,210.21,210.15,4.2798]
[1759171067789,7.65,210.21,210.13,15.19770016]
[1759171068184,7.65,210.21,210.14,4.2799]
[1759171068385,7.65,210.21,210.14,7.43]
[1759171069689,4.2787,210.21,210.16,4.2796]
[1759171070289,7.65,210.2,210.16,4.2796]
[1759171070784,4.2787,210.21,210.14,11.71]
[1759171070992,7.65,210.2,210.14,7.43]
[1759171071188,11.929,210.2,210.14,7.43]
[1759171072587,11.929,210.2,210.14,11.71]
[1759171073293,11.929,210.2,210.15,4.2798]
[1759171073594,4.279,210.2,210.16,7.43]
[1759171073794,7.65,210.19,210.16,7.43]
[1759171074094,11.9292,210.19,210.13,7.76770016]
[1759171075094,7.65,210.19,210.14,4.28]
[1759171075392,7.65,210.19,210.15,7.87]
[1759171075894,7.65,210.19,210.15,12.1498]
[1759171076195,7.65,210.19,210.16,7.87]
[1759171077694,82.76828547,210.23,210.13,4.2802]
[1759171077890,7.7,210.22,210.12,7.87]
[1759171078095,79.55351384,210.22,210.08,3.48750016]
[1759171078294,79.55351384,210.22,210.09,7.87]
[1759171079096,79.55351384,210.22,210.11,4.2806]
[1759171080590,4.2798,210.16,210.09,11.35750016]
[1759171081185,4.2793,210.18,210.1,7.87]
[1759171081392,0.82828547,210.23,210.15,3.48750016]
[1759171081691,5.29631384,210.27,210.19,7.87]
[1759171081895,7.7,210.28,210.22,4.2785]
[1759171082892,7.7,210.22,210.13,7.87]
[1759171083301,7.7,210.22,210.15,4.2797]
[1759171083602,7.7,210.22,210.15,7.87]
[1759171085000,7.7,210.23,210.08,7.87]
[1759171085603,4.2794,210.18,210.11,4.2806]
[1759171085809,4.2794,210.18,210.11,12.1506]
[1759171086608,7.7,210.19,210.11,7.87]
[1759171086910,11.18750016,210.19,210.11,7.87]
[1759171088610,4.2796,210.17,210.11,7.87]
[1759171089809,4.2798,210.16,210.11,7.87]
[1759171090010,11.9798,210.16,210.1,12.1508]
[1759171090209,7.7,210.16,210.1,12.1508]
[1759171093109,4.2799,210.15,210.1,7.87]
[1759171093316,7.7,210.14,210.08,12.1513]
[1759171093616,4.2799,210.15,210.08,12.1513]
[1759171094316,11.9796,210.17,210.09,4.281]
[1759171094511,11.9796,210.17,210.1,7.55]
[1759171095116,4.2798,210.16,210.1,11.8308]
[1759171095313,7.7,210.17,210.1,7.55]
[1759171095615,4.2806,210.12,210.06,4.2816]
[1759171097412,4.2808,210.11,210.05,7.55]
[1759171097618,12.1008,210.11,210.05,7.55]
[1759171099113,7.82,210.11,210.05,11.8318]
[1759171099321,34.66,210.15,210.05,7.55]
[1759171099913,4.2808,210.11,210.05,7.55]
[1759171103115,4.2811,210.1,210.05,7.55]
[1759171103319,7.82,210.12,210.02,4.2825]
[1759171103619,7.82,210.11,210.01,7.55]
[1759171103821,7.82,210.08,210.01,7.55]
[1759171105221,4.2815,210.07,210.01,7.55]
[1759171106614,4.2815,210.07,210.01,11.8326]
[1759171107821,7.82,210.08,210.02,4.2824]
[1759171108416,7.8,210.12,210.04,7.76]
[1759171108621,84.52,210.12,210.04,7.76]
[1759171109623,7.8,210.12,210.04,7.76]
[1759171109811,124.46,210.12,210.04,7.76]
[1759171110216,7.8,210.08,210.04,7.76]
[1759171111324,12.0814,210.08,210.04,7.76]
[1759171111524,7.8,210.07,210.04,7.76]
[1759171112321,12.0814,210.08,210.01,4.2827]
[1759171113826,4.2816,210.07,210.01,4.2827]
[1759171114529,7.8,210.06,210.0,37.76]
[1759171115027,7.8,210.02,210.0,30.0]
[1759171115425,12.0826,210.02,210.0,30.0]
[1759171115825,7.8,210.01,210.0,30.0]
[1759171116731,12.0822,210.04,210.0,37.76]
[1759171117427,4.2827,210.01,210.0,22.0408432]
[1759171117730,4.2827,210.01,209.91,7.76]
[1759171117731,76.65543077,210.01,209.91,7.76]
[1759171117925,2.23323077,209.97,209.91,7.76]
[1759171118526,6.51693077,209.97,209.91,7.76]
[1759171118925,2.23323077,209.97,209.91,7.76]
[1759171119132,4.284,209.95,209.89,2.23323077]
[1759171119529,4.284,209.95,209.88,7.76]
[1759171120121,7.8,209.96,209.88,7.76]
[1759171121632,7.8,209.96,209.88,12.0452]
[1759171122534,7.8,209.96,209.89,4.285]
[1759171122929,10.03323077,209.96,209.89,4.285]
[1759171123526,10.03323077,209.96,209.88,7.76]
[1759171124129,14.31703077,209.96,209.88,7.76]
[1759171126436,4.2842,209.94,209.88,7.76]
[1759171126632,4.2842,209.94,209.85,7.76]
[1759171126633,2.23323077,209.93,209.85,7.76]
[1759171127631,4.2848,209.91,209.85,12.046]
[1759171128631,4.2848,209.91,209.85,7.76]
[1759171131134,6.51833077,209.9,209.85,7.76]
[1759171131335,7.8,209.89,209.85,7.76]
[1759171131634,12.0854,209.89,209.85,7.76]
[1759171131837,7.8,209.88,209.81,7.76]
[1759171133543,7.8,209.88,209.83,4.2863]
[1759171133741,2.23323077,209.93,209.83,2.23323077]
[1759171133946,2.23323077,209.93,209.84,7.76]
[1759171134337,2.23323077,209.93,209.83,2.23323077]
[1759171134338,2.23323077,209.93,209.87,4.2856]
[1759171134646,2.23323077,209.93,209.88,7.81]
[1759171135134,2.23323077,209.93,209.87,4.2856]
[1759171135335,2.23323077,209.93,209.88,7.81]
[1759171135744,2.23323077,209.93,209.89,7.81]
[1759171136137,2.23323077,209.93,209.88,4.2852]
[1759171136847,2.23323077,209.93,209.89,7.81]
[1759171137347,2.23323077,209.93,209.88,4.2852]
[1759171138045,2.23323077,209.93,209.89,7.81]
[1759171138546,10.20323077,209.93,209.89,7.81]
[1759171139141,10.20323077,209.93,209.88,4.2852]
[1759171139649,4.284,209.95,209.88,4.2852]
[1759171139650,4.284,209.95,209.89,7.81]
[1759171141149,4.284,209.95,209.89,12.0951]
[1759171141342,12.2536,209.97,209.89,7.81]
[1759171142244,7.97,209.97,209.91,4.2847]
[1759171142548,7.97,209.97,209.93,7.81]
[1759171142749,7.97,209.97,209.92,2.23323077]
[1759171142949,7.97,209.97,209.93,7.81]
[1759171143451,10.14745314,210.0,209.94,2.23323077]
[1759171143748,10.14745314,210.0,209.97,7.81]
[1759171143749,2.17745314,210.0,209.97,7.81]
[1759171144044,2.17745314,210.0,209.96,2.23323077]
[1759171144250,2.17745314,210.0,209.97,7.81]
[1759171144449,2.17745314,210.0,209.94,2.23323077]
[1759171144649,10.14745314,210.0,209.94,2.23323077]
[1759171145344,7.97,209.98,209.94,2.23323077]
[1759171145548,7.97,209.99,209.92,2.23323077]
[1759171145740,7.97,209.99,209.9,7.81]
[1759171145741,7.97,209.99,209.9,10.04323077]
[1759171145939,7.97,209.96,209.9,10.04323077]
[1759171146143,124.99,209.96,209.88,2.23323077]
[1759171146338,127.22323077,209.96,209.87,7.81]
[1759171146537,7.97,209.95,209.87,10.04323077]
[1759171146751,119.25323077,209.96,209.87,10.04323077]
[1759171146951,4.2849,209.91,209.84,7.81]
[1759171147250,4.2849,209.91,209.85,2.23323077]
[1759171148140,117.08,209.96,209.89,2.23323077]
[1759171148339,125.05,209.96,209.89,2.23323077]
[1759171148744,4.2841,209.95,209.89,2.23323077]
[1759171148946,125.05,209.96,209.89,2.23323077]
[1759171150246,4.2843,209.94,209.89,2.23323077]
[1759171150551,125.07,209.96,209.89,10.04323077]
[1759171150751,129.3538,209.96,209.89,10.04323077]
[1759171150955,7.97,209.99,209.91,10.04323077]
[1759171151154,117.06,209.98,209.91,10.04323077]
[1759171151350,121.3434,209.98,209.91,14.32783077]
[1759171152349,7.97,209.99,209.95,2.23323077]
[1759171152555,7.97,209.99,209.95,10.04323077]
[1759171152954,6.46045314,210.0,209.96,7.81]
[1759171153163,14.43045314,210.0,209.96,7.81]
[1759171153348,10.14745314,210.0,209.96,7.81]
[1759171153549,10.14745314,210.0,209.95,6.51703077]
[1759171153860,10.14745314,210.0,209.96,7.81]
[1759171154246,2.17745314,210.0,209.95,6.51703077]
[1759171154453,2.17745314,210.0,209.96,7.92]
[1759171155353,2.17745314,210.0,209.95,2.23323077]
[1759171155856,2.17745314,210.0,209.96,7.92]
[1759171156450,2.17745314,210.0,209.95,2.23323077]
[1759171156651,2.17745314,210.0,209.96,7.92]
[1759171157255,9.70745314,210.0,209.97,2.23323077]
[1759171157855,2.17745314,210.0,209.98,7.92]
[1759171158046,2.17745314,210.0,209.97,2.23323077]
[1759171158252,2.17745314,210.0,209.98,7.92]
[1759171158454,2.17745314,210.0,209.99,10.15323077]
[1759171158858,5.29631384,210.09,209.99,2.23323077]
[1759171159157,78.54,210.1,210.05,2.23323077]
[1759171159459,7.53,210.05,210.01,2.23323077]
[1759171159658,117.04,210.05,209.97,2.23323077]
[1759171159857,7.53,210.04,209.97,2.23323077]
[1759171160061,4.2827,210.02,209.97,2.23323077]
[1759171160648,7.53,210.01,209.97,2.23323077]
[1759171160849,4.2827,210.02,209.97,2.23323077]
[1759171161049,7.53,210.01,209.97,2.23323077]
[1759171161754,4.2827,210.02,209.97,2.23323077]
[1759171162358,7.53,210.01,209.97,2.23323077]
[1759171162559,4.2827,210.02,209.97,2.23323077]
[1759171163160,7.53,210.01,209.97,2.23323077]
[1759171164064,4.2827,210.02,209.97,2.23323077]
[1759171164454,7.87,210.01,209.97,2.23323077]
[1759171164653,4.2827,210.02,209.97,2.23323077]
[1759171165059,7.87,210.01,209.97,2.23323077]
[1759171165360,7.87,210.03,209.95,2.23323077]
[1759171166066,12.1531,210.0,209.95,10.06323077]
[1759171166465,7.87,209.99,209.95,10.06323077]
[1759171166761,7.87,209.99,209.95,7.83]
[1759171166961,7.87,209.99,209.95,10.06323077]
[1759171167161,7.87,209.99,209.96,7.83]
[1759171167361,4.2826,210.02,209.97,2.23323077]
[1759171167567,124.85,210.03,209.99,7.83]
[1759171167865,7.87,210.02,209.99,7.83]
[1759171168659,7.87,210.02,209.99,10.06323077]
[1759171171067,129.0522,210.04,210.0,7.83]
[1759171171262,129.0522,210.04,210.01,2.23323077]
[1759171171263,124.77,210.04,210.01,2.23323077]
[1759171172167,7.87,210.03,210.01,2.23323077]
[1759171173266,7.87,210.02,210.01,2.23323077]
[1759171173466,124.75,210.05,210.01,2.23323077]
[1759171173659,4.2823,210.04,210.01,2.23323077]
[1759171173864,12.1523,210.04,210.01,2.23323077]
[1759171174061,7.87,210.03,210.01,2.23323077]
[1759171174268,7.87,210.03,209.99,7.83]
[1759171175670,7.87,210.01,209.98,3.48972335]
[1759171176569,4.2822,210.04,209.98,11.31972335]
[1759171177471,4.2825,210.03,209.98,11.31972335]
[1759171177663,7.87,210.02,209.98,11.31972335]
[1759171177865,7.87,210.02,209.99,7.83]
[1759171185581,12.1527,210.02,209.99,7.83]
[1759171187177,7.87,210.02,209.99,7.83]
[1759171190075,4.2827,210.02,209.98,3.48972335]
[1759171190371,7.87,210.04,209.95,7.77362335]
[1759171191573,4.2831,210.0,209.95,7.77362335]
[1759171191776,7.87,209.99,209.95,15.60362335]
[1759171195179,7.81,209.98,209.9,9.6000206]
[1759171195383,124.43,209.98,209.9,9.6000206]
[1759171195768,124.43,209.98,209.91,4.2847]
[1759171196169,7.81,209.98,209.91,7.9]
[1759171196981,66.6173,210.03,209.93,7.9]
[1759171196982,7.81,210.02,209.93,7.9]
[1759171197281,124.43,210.02,209.95,3.48972335]
[1759171197475,124.43,210.02,209.96,7.9]
[1759171197877,4.2829,210.01,209.96,7.9]
[1759171198178,124.43,210.02,209.95,11.38972335]
[1759171198678,4.2828,210.01,209.95,15.67362335]
[1759171200781,4.2831,210.0,209.95,11.38972335]
[1759171201084,7.81,209.99,209.95,7.9]
[1759171203180,7.81,209.99,209.96,7.9]
[1759171203380,5.29631384,210.06,209.98,3.48972335]
[1759171203679,13.10631384,210.1,210.02,7.9]
[1759171203881,7.81,210.1,210.02,7.9]
[1759171204378,7.81,210.1,210.04,4.282]
[1759171204579,7.81,210.1,210.02,7.9]
[1759171206784,4.2812,210.09,210.02,7.9]
[1759171207380,7.81,210.06,209.99,4.2831]
[1759171207586,7.81,210.06,209.98,7.9]
[1759171208492,4.2821,210.05,209.98,12.1832]
[1759171208987,13.10631384,210.1,210.0,7.9]
[1759171209193,121.0012,210.09,210.02,12.1824]
[1759171211096,4.2815,210.07,210.0,7.9]
[1759171211399,7.81,210.08,210.0,7.9]
[1759171213101,7.81,210.08,210.03,4.2822]
[1759171213297,7.81,210.08,210.04,7.9]
[1759171213497,128.8112,210.09,210.0,7.9]
[1759171213797,128.8112,210.09,210.02,7.9]
[1759171215598,128.8112,210.09,210.03,4.2822]
[1759171216195,124.53,210.09,210.03,4.2822]
[1759171216396,7.81,210.09,210.04,4.2819]
[1759171216600,7.81,210.09,210.03,7.71]
[1759171216989,116.64,210.12,210.03,7.71]
[1759171217198,7.87,210.11,210.03,7.71]
[1759171217595,7.87,210.11,209.99,11.19972335]
[1759171218396,7.87,210.08,210.0,7.71]
[1759171218794,7.87,210.08,210.02,4.2824]
[1759171220799,7.87,210.08,210.0,11.9929]
[1759171221002,7.87,210.07,209.96,11.19972335]
[1759171221306,7.87,210.05,209.93,7.71]
[1759171221498,7.87,210.03,209.93,7.71]
[1759171221901,12.1531,210.0,209.93,7.71]
[1759171222902,12.1531,210.0,209.93,11.9942]
[1759171223305,7.87,210.0,209.94,4.284]
[1759171223504,7.87,210.0,209.93,7.71]
[1759171224508,4.2826,210.02,209.93,7.71]
[1759171224808,4.2826,210.02,209.95,4.2838]
[1759171225909,12.3829,210.01,209.95,4.2838]
[1759171226108,12.3829,210.01,209.93,7.71]
[1759171226310,8.1,210.01,209.93,7.71]
[1759171226909,8.1,209.97,209.89,7.96]
[1759171228010,4.283,210.0,209.89,7.96]
[1759171228214,8.1,210.01,209.9,7.96]
[1759171228418,8.1,210.01,209.92,7.96]
[1759171229216,12.3829,210.01,209.94,4.284]
[1759171229416,12.3829,210.01,209.92,7.96]
[1759171229710,12.3829,210.01,209.93,4.2842]
[1759171230313,4.2831,210.0,209.93,4.2842]
[1759171230515,8.1,209.99,209.93,4.2842]
[1759171231616,8.1,209.99,209.92,7.96]
[1759171231617,4.2834,209.98,209.92,7.96]
[1759171231818,8.1,209.97,209.9,4.2848]
[1759171232020,8.1,209.97,209.88,7.96]
[1759171233316,8.1,209.97,209.92,4.2844]
[1759171233614,8.1,210.0,209.89,7.96]
[1759171234519,12.3831,210.0,209.93,4.2842]
[1759171236322,2.03180702,210.01,209.95,4.284]
[1759171237422,8.1,210.0,209.93,4.2843]
[1759171238623,12.3831,210.0,209.94,4.284]
[1759171239120,12.3831,210.0,209.93,4.2842]
[1759171239724,4.2833,209.99,209.92,9.99180702]
[1759171241020,4.2833,209.99,209.94,4.284]
[1759171241225,8.1,210.0,209.94,4.284]
[1759171241722,8.1,210.0,209.95,4.2838]
[1759171241920,8.1,210.03,209.96,2.03180702]
[1759171242125,8.1,210.03,209.97,7.96]
[1759171242619,2.1786416,210.06,210.0,2.03180702]
[1759171243420,2.1786416,210.06,210.01,7.96]
[1759171243828,2.1786416,210.06,210.02,2.03180702]
[1759171244022,2.1786416,210.06,210.02,9.99180702]
[1759171244326,8.1,210.05,210.01,4.2825]
[1759171244520,8.1,210.05,210.01,12.2425]
[1759171246332,2.1786416,210.06,210.02,2.03180702]
[1759171246528,2.1786416,210.06,210.03,7.96]
[1759171246723,10.2786416,210.06,210.02,2.03180702]
[1759171247028,10.2786416,210.06,210.02,9.99180702]
[1759171247325,8.1,210.05,210.01,7.96]
[1759171247524,8.1,210.05,209.98,2.03180702]
[1759171248326,8.1,210.01,209.96,2.03180702]
[1759171248526,2.03180702,210.03,209.94,2.03180702]
[1759171248727,8.1,210.02,209.94,2.03180702]
[1759171248928,4.2829,210.01,209.94,6.31580702]
[1759171249328,8.1,210.02,209.96,2.03180702]
[1759171249532,116.34,210.06,209.98,2.03180702]
[1759171249924,116.34,210.06,209.96,2.03180702]
[1759171250130,8.1,210.04,209.96,2.03180702]
[1759171250635,8.1,210.04,209.96,6.31550702]
[1759171250636,4.2825,210.03,209.96,6.31550702]
[1759171250933,8.1,210.04,209.96,6.31550702]
[1759171251827,8.1,210.04,209.96,4.2837]
[1759171252634,4.2827,210.02,209.96,4.2837]
[1759171255034,8.1,210.04,209.96,4.2837]
[1759171255035,12.3821,210.04,209.97,4.2834]
[1759171255334,12.3821,210.04,209.96,2.03180702]
[1759171255831,12.3821,210.04,209.96,6.31550702]
[1759171256223,12.3821,210.04,209.96,2.03180702]
[1759171257335,12.3821,210.04,209.98,4.2832]
[1759171262238,4.2825,210.03,209.97,7.72]
[1759171262432,8.1,210.04,209.97,7.72]
[1759171262933,7.87,210.08,210.0,2.03180702]
[1759171263132,7.87,210.08,210.02,2.03180702]
[1759171263729,7.87,210.08,210.0,2.03180702]
[1759171264527,12.1515,210.08,210.0,6.31470702]
[1759171264731,7.87,210.08,210.0,6.31470702]
[1759171265632,4.2816,210.07,210.0,6.31470702]
[1759171266038,4.2816,210.07,210.01,4.2826]
[1759171268232,7.87,210.08,210.02,14.03420702]
[1759171269435,12.1514,210.08,210.02,14.03420702]
[1759171271437,116.62,210.1,210.04,2.03180702]
[1759171271636,116.62,210.1,210.06,2.03180702]
[1759171271940,7.87,210.11,210.07,7.72]
[1759171272539,7.87,210.11,210.07,12.0015]
[1759171272835,444.41,210.15,210.08,9.75180702]
[1759171273234,4.2801,210.14,210.08,14.03300702]
[1759171273730,444.41,210.15,210.09,4.281]
[1759171276136,448.69,210.15,210.09,4.281]
[1759171276337,444.41,210.15,210.08,9.75180702]
[1759171277536,4.2805,210.13,210.08,9.75180702]
[1759171277742,8.07,210.12,210.08,9.75180702]
[1759171278744,8.07,210.12,210.09,7.43]
[1759171279145,448.89,210.15,210.09,7.43]
[1759171280345,4.2802,210.14,210.08,6.31300702]
[1759171280847,8.07,210.12,210.08,2.03180702]
[1759171281149,4.2804,210.13,210.08,2.03180702]
[1759171281644,8.07,210.12,210.06,2.03180702]
[1759171281850,8.07,210.1,210.04,2.03180702]
[1759171282042,4.2818,210.06,210.0,2.03180702]
[1759171282349,8.07,210.11,210.02,2.03180702]
[1759171282538,124.65,210.11,210.04,2.03180702]
[1759171282742,4.281,210.1,210.04,2.03180702]
[1759171283043,124.65,210.11,210.06,2.03180702]
[1759171283342,124.65,210.11,210.07,7.43]
[1759171283548,124.65,210.11,210.06,2.03180702]
[1759171283753,124.65,210.11,210.06,9.46180702]
[1759171284248,8.01,210.1,210.06,9.46180702]
[1759171285548,8.01,210.1,210.04,2.03180702]
[1759171286052,116.58,210.11,210.06,2.03180702]
[1759171286252,8.01,210.14,210.08,2.03180702]
[1759171286551,116.64,210.15,210.09,7.92]
[1759171286757,116.64,210.15,210.1,2.03180702]
[1759171287049,8.01,210.14,210.1,9.95180702]
[1759171287650,116.64,210.15,210.1,9.95180702]
[1759171287851,116.64,210.15,210.1,2.03180702]
[1759171288449,120.92,210.15,210.1,2.03180702]
[1759171288648,8.01,210.14,210.1,2.03180702]
[1759171289050,120.92,210.15,210.1,2.03180702]
[1759171289547,8.01,210.14,210.1,2.03180702]
[1759171289755,116.64,210.15,210.11,7.92]
[1759171290561,8.01,210.14,210.11,7.92]
[1759171294256,8.01,210.14,210.09,4.281]
[1759171294451,128.93,210.15,210.09,4.281]
[1759171296059,116.64,210.15,210.1,4.2808]
[1759171296263,116.64,210.15,210.11,7.92]
[1759171296462,124.65,210.15,210.11,7.92]
[1759171296760,8.01,210.14,210.11,7.92]
[1759171298260,116.64,210.15,210.11,4.2806]
[1759171298566,116.64,210.15,210.12,7.92]
[1759171298863,124.65,210.15,210.12,7.92]
[1759171300566,124.65,210.15,210.11,4.2806]
[1759171300756,124.65,210.15,210.11,12.2006]
[1759171301067,8.01,210.14,210.11,12.2006]
[1759171302761,8.01,210.14,210.11,7.92]
[1759171304164,8.01,210.14,210.11,12.2006]
[1759171304562,4.2794,210.18,210.1,3.48615628]
[1759171304771,8.01,210.19,210.14,7.92]
[1759171305567,8.01,210.19,210.15,4.2798]
[1759171305766,8.01,210.19,210.16,7.92]
[1759171306567,8.01,210.21,210.1,7.92]
[1759171306773,112.78,210.22,210.1,11.40615628]
[1759171306968,8.01,210.21,210.1,11.40615628]
[1759171307172,8.01,210.21,210.11,7.92]
[1759171307774,4.279,210.2,210.1,3.48615628]
[1759171307974,4.279,210.2,210.11,7.92]
[1759171308566,4.279,210.2,210.14,4.28]
[1759171308769,4.279,210.2,210.11,7.92]
[1759171308770,8.01,210.18,210.11,7.92]
[1759171308970,3.27320349,210.17,210.11,7.92]
[1759171310372,8.01,210.16,210.11,7.92]
[1759171310571,8.01,210.21,210.1,4.2808]
[1759171310771,8.01,210.19,210.1,4.2808]
[1759171310973,4.2798,210.16,210.1,4.2808]
[1759171311174,11.28430365,210.15,210.08,12.2012]
[1759171311374,8.01,210.15,210.08,12.2012]
[1759171311573,7.55550761,210.14,210.08,12.2012]
[1759171311968,8.01,210.13,210.06,4.2817]
[1759171312172,3.27682073,210.12,210.06,4.2817]
[1759171312676,8.01,210.11,210.05,7.92]
[1759171312872,8.01,210.11,210.02,7.92]
[1759171313179,3.27790604,210.1,210.02,7.92]
[1759171313675,3.27790604,210.1,210.02,22.0087882]
[1759171313867,3.27790604,210.1,210.03,7.92]
[1759171314063,3.27790604,210.13,210.05,7.92]
[1759171314278,3.27790604,210.12,210.07,3.48615628]
[1759171314479,3.27790604,210.11,210.07,3.48615628]
[1759171314776,3.27790604,210.13,210.07,3.48615628]
[1759171314974,3.27790604,210.12,210.08,7.88]
[1759171315170,3.27790604,210.11,210.08,7.88]
[1759171315476,3.27978417,210.13,210.07,11.36615628]
[1759171315772,3.27978417,210.12,210.07,3.48615628]
[1759171316078,3.27949913,210.13,210.1,7.88]
[1759171316271,3.28066881,210.12,210.1,7.88]
[1759171316477,7.4,210.16,210.1,7.88]
[1759171316677,3.280784,210.15,210.09,4.281]
[1759171316972,3.280784,210.14,210.09,4.281]
[1759171317176,23.9,210.18,210.09,4.281]
[1759171317177,3.280784,210.13,210.09,4.281]
[1759171317371,10.680784,210.12,210.07,15.64755628]
[1759171317569,3.280784,210.11,210.08,7.88]
[1759171317766,7.4,210.12,210.08,7.88]
[1759171317973,3.281361,210.11,210.08,7.88]
[1759171318172,7.4,210.12,210.08,12.1612]
[1759171318372,3.2814997,210.11,210.09,7.88]
[1759171318569,7.4,210.12,210.09,7.88]
[1759171318766,7.4,210.16,210.1,4.2808]
[1759171318971,10.68146564,210.15,210.11,7.88]
[1759171319171,3.28146564,210.14,210.11,7.88]
[1759171319372,3.28146564,210.13,210.11,7.88]
[1759171319574,3.28146564,210.12,210.11,7.88]
[1759171320078,69.2,210.2,210.11,7.88]
[1759171320079,2.67872465,210.16,210.11,7.88]
[1759171320278,69.2,210.2,210.12,7.88]
[1759171321279,7.4,210.19,210.12,7.88]
[1759171321779,11.6791,210.19,210.12,12.1604]
[1759171322876,4.2794,210.18,210.12,12.1604]
[1759171323579,4.2794,210.18,210.12,7.88]
[1759171323776,7.4,210.17,210.06,3.48615628]
[1759171323969,7.4,210.17,210.04,7.88]
[1759171324983,4.2803,210.14,210.07,4.2814]
[1759171325279,7.4,210.13,210.07,4.2814]
[1759171325873,7.4,210.13,210.05,4.2819]